Cogmind - Beta 12 @@@ ROGUE MODE // 2023.10.26 @ 17:50:09 Player: Rainynight Result: Destroyed self via exploding EX-Generator Performance ------------- Evolutions (0) 0 Regions Visited (3) 600 Robots Destroyed (12) 60 Value Destroyed (251) 251 Prototype IDs (24) 480 Alien Tech Used (0) 0 Bonus (300) 300 TOTAL SCORE: 1691 Bonus ------- Aligned with FarCom 300 Cogmind --------- Core Integrity 0/250 Matter 186/300 Energy 35/125 System Corruption 7% Temperature Critical (550) Movement Treading (320) Ox2 Location -10/Exiles Parts ------- > --- POWER (1) -------- Light Ion Engine > --- PROPULSION (2) --- Light Treads > --- UTILITY (2) ------ Large Storage Unit > --- WEAPON (2) ------- Firepult > --- INVENTORY (15) --- Cold Fusion Reactor Hover Unit Makeshift Hover Unit Large Storage Unit High-capacity Matter Pod (31) Terrain Scanner Chronowheel Light Assault Rifle XL Autogun Array Light Cannon Light Cannon Hammer Peak State ------------ > --- POWER ------------ Cold Fusion Reactor > --- PROPULSION ------- Light Treads Light Treads > --- UTILITY ---------- Large Storage Unit Targeting Computer > --- WEAPON ----------- Firepult > --- INVENTORY -------- Light Ion Engine Hover Unit Makeshift Hover Unit Large Storage Unit High-capacity Matter Pod Terrain Scanner Chronowheel Light Assault Rifle XL Autogun Array Light Cannon Light Cannon Hammer [Rating: 36] Favorites ----------- Power Ion Engine Engine Ion Engine Reactor Cold Fusion Reactor Propulsion Light Treads Treads Light Treads Utility Large Storage Unit Storage Large Storage Unit Processor Targeting Computer Weapon Light Cannon Energy Cannon Firepult Ballistic Gun Light Assault Rifle Ballistic Cannon Light Cannon Impact Weapon Hammer Build | -11 -10 -10 -10 ------- Run | Jun Mat Min Exi Slots Evolved . | . . . . Power . | . . . . Propulsion . | . . . . Utility . | . . . . Weapon . | . . . . Parts Attached 20 | 6 8 . 6 Power 4 | 1 1 . 2 Engine 3 | 1 1 . 1 Core . | . . . . Reactor 1 | . . . 1 Propulsion 2 | 2 . . . Treads 2 | 2 . . . Leg . | . . . . Wheel . | . . . . Hover . | . . . . Flight . | . . . . Utility 4 | 1 2 . 1 Device . | . . . . Storage 3 | 1 1 . 1 Processor 1 | . 1 . . Hackware . | . . . . Protection . | . . . . Artifact . | . . . . Weapon 10 | 2 5 . 3 Energy Gun . | . . . . Energy Cannon 1 | . . . 1 Ballistic Gun 4 | 2 2 . . Ballistic Cannon 4 | . 2 . 2 Launcher . | . . . . Special Weapon . | . . . . Impact Weapon 1 | . 1 . . Slashing Weapon . | . . . . Piercing Weapon . | . . . . Special Melee Weapon . | . . . . Unidentified Prototypes 1 | . . . 1 Corrupted Parts 1 | . 1 . . System Corruption 7 | . 7 . . Parts Lost 3 | . 1 . 2 Power 1 | . 1 . . Propulsion 1 | . . . 1 Utility 1 | . . . 1 Weapon . | . . . . Highest Loss Streak 2 | . 1 . 2 To Critical Strikes 1 | . . . 1 Average Slot Usage (%) 94 | . 91 100 92 Engine 12 | . 12 14 12 Treads 27 | . 28 28 27 Storage 15 | . 18 14 14 Processor 9 | . 3 14 13 Energy Cannon 1 | . . . 6 Ballistic Gun 6 | . 15 . . Ballistic Cannon 17 | . 10 28 15 Naked Turns . | . . . . Heaviest Build 54 | 11 36 31 54 Greatest Support 40 | 40 40 40 40 Greatest Overweight (x) 1 | . . . 1 Average Overweight (x) . | . . . . Largest Inventory Capacity 15 | 8 15 15 15 Average Capacity 13 | 7 12 15 15 Most Carried 15 | . 15 15 15 Average Carried 11 | . 7 15 14 Final Capacity 15 | 8 15 15 15 Final Carried 15 | . 15 15 15 Class Distribution -------------------- 100% | Mutant Dominant Class ---------------- Mutant | -10/Materials Mutant | -10/Mines Mutant | -10/Exiles Resources | -11 -10 -10 -10 ----------- Run | Jun Mat Min Exi Matter Collected 538 | 260 161 110 7 Remotely . | . . . . Salvage Created 344 | . 192 64 88 Parts 25 | . 13 5 7 Haulers Intercepted 1 | . 1 . . Recyclers Shooed 1 | . 1 . . Parts Field Recycled . | . . . . Retrieved Matter . | . . . . Parts Self-Destructed . | . . . . Prevented . | . . . . Kills | -11 -10 -10 -10 ------- Run | Jun Mat Min Exi Combat Hostiles Destroyed 12 | . 4 4 4 Melee 1 | . 1 . . Guns 2 | . 2 . . Cannons 6 | . . 4 2 AOE 2 | . . . 2 Classes Destroyed 6 | . 5 . 1 Hauler 1 | . 1 . . Recycler 1 | . 1 . . Operator 1 | . 1 . . Swarmer 3 | . 3 . . Grunt 5 | . 1 4 . Assembled 4 | . . . 4 Best Kill Streak 4 | . 3 2 4 Combat Bots Only 4 | . 3 2 4 Max Kills in Single Turn 3 | . 1 1 3 Gunslinging . | . . . . Exploded 2 | . . . 2 Melee 1 | . 1 . . Uniques/NPCs Destroyed 1 | . . . 1 EX-BIN (-10/Exiles) Combat | -11 -10 -10 -10 -------- Run | Jun Mat Min Exi Damage Taken 1017 | . 190 192 635 Core 319 | . 7 14 298 Absorbed by Shields . | . . . . Core Remaining (%) 100 | 100 . . . Volleys Fired 39 | . 19 13 7 Largest 2 | . 2 2 1 Hottest 250 | . 70 70 250 Shots Fired 73 | . 37 26 10 Gun 35 | . 35 . . Cannon 38 | . 2 26 10 Launcher . | . . . . Special . | . . . . Kinetic 64 | . 37 26 1 Thermal 9 | . . . 9 Explosive . | . . . . Electromagnetic . | . . . . Robot Hit Streak 18 | . 4 18 10 Robot Miss Streak 3 | . 3 1 3 Penetration Max . | . . . . Secondary Targets . | . . . . Shots Hit Robots 60 | . 29 23 8 Core Hits 30 | . 12 6 12 Critical Kills 1 | . 1 . . Critical Parts Destroyed 1 | . 1 . . Critical Strikes 2 | . 2 . . Smash 2 | . 2 . . Melee Attacks 16 | . 16 . . Impact 16 | . 16 . . Slashing . | . . . . Piercing . | . . . . Sneak Attacks . | . . . . Combat Hostiles . | . . . . Follow-up Attacks . | . . . . Damage Inflicted 1033 | . 388 395 250 Guns 186 | . 186 . . Cannons 478 | . 17 395 66 Explosions 184 | . . . 184 Melee 185 | . 185 . . Ramming . | . . . . Kinetic 598 | . 203 395 . Thermal 250 | . . . 250 Explosive . | . . . . Electromagnetic . | . . . . Impact 185 | . 185 . . Slashing . | . . . . Piercing . | . . . . Highest Corruption 7 | . 7 7 7 Average Corruption 7 | . 7 7 7 Corruption Purged . | . . . . Corruption Blocked . | . . . . Effects 28 | . 7 9 12 Message Errors 8 | . 4 1 3 Matter Fused 5 | . 1 3 1 Heat Flow Errors 2 | . 1 1 . Energy Discharges 8 | . 1 4 3 Data Loss (minor) 1 | . . . 1 Data Loss (major) 1 | . . . 1 Misfires 3 | . . . 3 Overload Shots . | . . . . Overflow Damage 23 | . 23 . . Projectiles . | . . . . Explosions . | . . . . Melee 23 | . 23 . . Knockbacks 2 | . 2 . . Impact 2 | . 2 . . Kinetic . | . . . . Secondary . | . . . . Self-Inflicted Damage 211 | . . . 211 Shots 10 | . . . 10 Rammed . | . . . . Targets Rammed . | . . . . Kicked . | . . . . Crushed . | . . . . Highest Temperature 580 | . 128 239 580 Average Temperature 136 | . 47 75 192 Received Heat Transfer 123 | . 12 111 . Effects 8 | . . . 8 Shutdowns 1 | . . . 1 Interference 3 | . . . 3 Matter Decay 1 | . . . 1 Short Circuit 1 | . . . 1 Damage (core) 2 | . . . 2 Siege Activations . | . . . . Robots Corrupted . | . . . . Combat Hostiles . | . . . . Parts Fried . | . . . . Impact Corruptions 4 | . 4 . . Robots Melted . | . . . . Combat Hostiles . | . . . . Parts Melted 6 | . . . 6 Heat Transferred 1720 | . . . 1720 Parts Sabotaged . | . . . . Parts Stolen . | . . . . Parts Stripped . | . . . . Power Chain Reactions . | . . . . Missiles Intercepted . | . . . . Alert | -11 -10 -10 -10 ------- Run | Jun Mat Min Exi Peak Influence 217 | . 217 108 . Initial 8 | . . 8 . Average 99 | . 118 93 . Maximum Alert Level 1 | . 1 . . Low Security (%) 80 | 100 63 100 . Level 1 19 | . 36 . . Level 2 . | . . . . Level 3 . | . . . . Level 4 . | . . . . Level 5 . | . . . . High Security . | . . . . Max Security . | . . . . Squads Dispatched 1 | . 1 . . Investigation 1 | . 1 . . Extermination . | . . . . Reinforcement . | . . . . Assault . | . . . . Garrison . | . . . . Intercept . | . . . . Searches Triggered . | . . . . Construction Impeded . | . . . . Haulers Reinforced . | . . . . Active Scanning Responses . | . . . . Cargo Convoy Interrupts . | . . . . Stealth | -11 -10 -10 -10 --------- Run | Jun Mat Min Exi Distress Signals . | . . . . Communications Jammed . | . . . . Distress Signals . | . . . . Times Spotted 19 | . 9 4 6 Peak Tracking Total 9 | . 3 2 9 Tactical Retreats 3 | . 2 . 1 Traps | -11 -10 -10 -10 ------- Run | Jun Mat Min Exi Traps Triggered . | . . . . Indirectly . | . . . . Trap Hack Attempts . | . . . . Triggered . | . . . . Disarmed . | . . . . Reprogrammed . | . . . . Reused . | . . . . Traps Extracted . | . . . . Installed . | . . . . Triggered . | . . . . Machines | -11 -10 -10 -10 ---------- Run | Jun Mat Min Exi Machines Disabled 6 | . . . 6 Max in Single Turn 2 | . . . 2 Machines Repaired . | . . . . Machines Sabotaged . | . . . . Overloaded Fab Kills . | . . . . Hacking | -11 -10 -10 -10 --------- Run | Jun Mat Min Exi Machines Accessed 3 | . 2 . 1 Terminals 1 | . 1 . . Fabricators . | . . . . Repair Stations . | . . . . Recycling Units 1 | . 1 . . Scanalyzers . | . . . . Garrison Access . | . . . . Total Hacks 5 | . 4 . 1 Successful 4 | . 3 . 1 Failed 1 | . 1 . . Catastrophic . | . . . . Database Lockouts . | . . . . Manual 3 | . 2 . 1 Terminals 3 | . 3 . . Fabricators . | . . . . Repair Stations . | . . . . Recycling Units 1 | . 1 . . Scanalyzers . | . . . . Garrison Access . | . . . . Terminal Hacks 3 | . 2 . 1 Locate Traps 1 | . 1 . . Maintenance Status 1 | . 1 . . EX-Prototype ID Bank 1 | . . . 1 Fabricator Hacks . | . . . . Repair Station Hacks . | . . . . Recycling Unit Hacks . | . . . . Scanalyzer . | . . . . Garrison Access Hacks . | . . . . Unauthorized Hacks 1 | . 1 . . Terminals . | . . . . Fabricators . | . . . . Repair Stations . | . . . . Recycling Units 1 | . 1 . . Tunnel 1 | . 1 . . Scanalyzers . | . . . . Garrison Access . | . . . . Data Cores Recovered 1 | . 1 . . Used . | . . . . Hacking Detections 1 | . 1 . . Full Trace Events . | . . . . Feedback Events . | . . . . Feedback Blocked . | . . . . Robot Schematics Acquired . | . . . . Robots Built . | . . . . Authchips . | . . . . Time . | . . . . Total Robot Build Rating . | . . . . Part Schematics Acquired . | . . . . Parts Built . | . . . . Authchips . | . . . . Time . | . . . . Total Part Build Rating . | . . . . Parts Repaired . | . . . . Time . | . . . . Parts Recycled . | . . . . Recycled Matter . | . . . . Retrieved Matter . | . . . . Retrieved Components . | . . . . Parts Scanalyzed . | . . . . Part Schematics Acquired . | . . . . Parts Damaged . | . . . . Bothacking | -11 -10 -10 -10 ------------ Run | Jun Mat Min Exi Used RIF Installer . | . . . . Robots Hacked . | . . . . Non-combat . | . . . . Combat . | . . . . Robot Hacks Applied . | . . . . Relay Couplers Released . | . . . . Fabnet Peak Effective % . | . . . . Robots Rewired . | . . . . Allies Hacked . | . . . . Hacks Repelled . | . . . . Allies | -11 -10 -10 -10 -------- Run | Jun Mat Min Exi Total Allies 2 | . . 2 . Largest Group 2 | . . 2 2 Highest-Rated Group 50 | . . 50 50 Highest-Rated Ally 31 | . . 31 31 Total Orders . | . . . . Ally Attacks . | . . . . Total Damage . | . . . . Kills . | . . . . Allies Corrupted . | . . . . Allies Melted . | . . . . Intel | -11 -10 -10 -10 ------- Run | Jun Mat Min Exi Robot Analysis Total . | . . . . Derelict Logs Recovered . | . . . . Drone Launches . | . . . . Drone Recoveries . | . . . . Exploration | -11 -10 -10 -10 ------------- Run | Jun Mat Min Exi Turns Passed 1261 | 62 469 367 363 Spaces Moved 632 | 38 218 201 175 Core 6 | 6 . . . Treads 626 | 32 218 201 175 Legs . | . . . . Wheels . | . . . . Hover . | . . . . Flight . | . . . . Fastest Speed 50 | 50 160 160 160 Average Speed 165 | 142 160 160 182 Slowest Speed 240 | 160 160 160 240 Overloaded Moves . | . . . . Propulsion Burnouts . | . . . . Robots Hopped . | . . . . Cave-ins Triggered . | . . . . Exploration Rate (%) 27 | 4 37 26 41 Regions Visited 3 Branch Regions 2 Pre-discovered Areas 1 | . 1 . . Known Exits Taken . | . . . . Unknown Exits Taken 3 | 1 1 1 . Scrap Searched . | . . . . Spaces Dug 1 | . 1 . . Terrain Destroyed 36 | . 1 . 35 Melee 1 | . 1 . . Projectile 1 | . . . 1 AOE 34 | . . . 34 Terrain Rammed . | . . . . Walls Destroyed . | . . . . Machines Disabled . | . . . . Actions | -11 -10 -10 -10 --------- Run | Jun Mat Min Exi Total 757 | 43 277 221 216 Wait 20 | . . 8 12 Move 629 | 37 217 200 175 Hop . | . . . . Pick Up 18 | . 13 . 5 Fast Attach 13 | 6 5 . 2 Attach . | . . . . Detach 3 | . 3 . . Swap 7 | . 3 . 4 Drop 12 | . 1 . 11 Fire 39 | . 19 13 7 Melee 16 | . 16 . . Ram . | . . . . Kick . | . . . . Crush . | . . . . Escape Stasis . | . . . . Rewire . | . . . . Trap . | . . . . Miscellaneous . | . . . . Route ------- -11/Junkyard -10/Materials -10/Mines -10/Exiles History --------- Turn | Location | Event 6 | -11/Junkyard | Discovered new exit (range 16) 63 | -11/Junkyard | Entered Materials 321 | -10/Materials | Build established: Mutant 487 | -10/Materials | Discovered new exit (range 16) 532 | -10/Materials | Entered Mines 893 | -10/Mines | Deemed a non-threat by the Exiles lab entrance 893 | -10/Mines | Discovered new exit (range 5) 899 | -10/Mines | Entered Exiles 899 | -10/Exiles | Accompanied by 2 allies 929 | -10/Exiles | Led the pair of lost Derelicts to a safe place 943 | -10/Exiles | Met 8R-AWN 963 | -10/Exiles | Met EX-HEX 1011 | -10/Exiles | Met EX-BIN 1031 | -10/Exiles | Aligned with FarCom system 1032 | -10/Exiles | Given EX-Vault access code 1075 | -10/Exiles | Opened EX-Vault 1095 | -10/Exiles | Found XL Autogun Array 1103 | -10/Exiles | Found Chronowheel 1108 | -10/Exiles | Found Firepult 1174 | -10/Exiles | Exiles lab attacked by MAIN.C 1179 | -10/Exiles | Attacked by the Exiles 1179 | -10/Exiles | Destroyed EX-BIN 1259 | -10/Exiles | Core integrity fell below 50% 1261 | -10/Exiles | Core integrity fell below 20% 1262 | -10/Exiles | Destroyed self via exploding EX-Generator Last Messages --------------- 01255_ Penetrated by HV Slug. 01255_ Critical hit (Destroy). 01255_ Lgt. Treads destroyed. 01255_ HV Slug penetrates Wall. 01255_ Penetrated by HV Slug. 01255_ HV Slug penetrates Wall. 01257_ System corrupted: FCS attempts to trigger Firepult. 01257_ System corrupted: Firepult misfires. 01258_ Penetrated by HV Slug. 01258_ HV Slug penetrates Wall. 01258_ Penetrated by HV Slug. 01258_ HV Slug penetrates Wall. 01260_ Power failure, Lgt. Ion Engine shutdown. 01260_ Overheating: Core damaged (-27). 01260_ HV Slug penetrates EX-Generator. 01260_ Penetrated by HV Slug. 01260_ HV Slug penetrates Wall. 01261_ Overheating: Core damaged (-50). 01262_ EX-Generator explodes. 01262_ Overheating: Matter decay (-35). Map ----- +----------------------------------------------------+ | ??????# #??????????????????????????????????? | | ??????# [X#??????????????????????????????????? | | ??????## ][##??????????????????????????????????? | | ??????#X [#???????????????????????????????????? | | ??????## #???????????????????????????????????? | | ???????# #???????????????????????????????????? | | ???????# #???###?????????????????????????????? | | ??????## #??"""""????????????????????????????? | | ??????# ## """????????????????????????????? | | ??????# X""????????????????????????????? | | ??????# ## """????????????????????????????? | | ?####?## #??"""""????????????????????????????? | | ?"""""?# #???###?????????????????????????????? | | """" ## #???????????????????????????????????? | | ""X" #???????????????????????????????????? | | " #???????????????????????????????????? | | " ## #???????????????????????????????????? | | """"""?# #?#########?????????????????????????? | | #"###??# #?#"""""""#?????????????????????????? | | ???????# ###"""""""#?????????????????????????? | | ???????# ##"""""""#?????????????????????????? | | ??????## ##"" """ ###???????????????????????? | | ??????#" "" "# ????????????????????????? | | ??????#" " #????????????????????????? | | ??????#" ! ##;;;;???????????????????? | | ??????#" ##@ ;???????????????????? | | ??????#" *! # ;???????????????????? | | ??????# g ;???????????????????? | | ??????## " ;???????????????????? | | ???????# """## # ##???????????????????? | | ???????# """"" #????????????????????? | | ??????? # """#????????????????????? | | ??????# """""# ""?#????????????????????? | | ??????# ####### ""??????????????????????? | | ?????# ##???????###??????????????????????? | | ???### ##??????????????????????????????????? | | ???"""" ##??????????????????????????????????? | | ?"" " " ##???###########???????????????????? | | ?"" " #####"""""""""##??????????????????? | | " " """ """"##?????????????????? | | "" " #?????????????????? | | " """#?????????????????? | | " "#???????????#####?? | | " "##?????????##" #?? | | ""###???????#" #?? | | """""" """#??????##" ##? | | ######""" "#????### ## | | ""#?????#####""" ##???# | | ?????????????##""" ##?## | | ??????????????#"""" ### | +----------------------------------------------------+ Best States ------------- Heat Dissipation 25 Energy Generation 17 Energy Capacity 250 Matter Stores 300 Matter Capacity 300 Sight Range 16 Terrain Scan Density 10 Evasion (%) 40 Targeting Accuracy 5 Recoil Reduction 2 Item Schematics ----------------- None Robot Schematics ------------------ None Fabricated ------------ Nothing Alien Tech Used ----------------- None Achievements -------------- None Challenges ------------ None Game ------ Seed CryofiberFlyingDrive Manual? 0 Play Time 00:09:49 Cumulative 287.0 hours Start 2023.10.26 @ 17:39:11 End 2023.10.26 @ 17:50:09 Sessions 1 Manual Loads 0 Difficulty Rogue Special Mode None Game No. 319 Rogue 292 Adventurer 2 Explorer 25 Win Type - Total 19 Types 16/1/0/2/0/0/0/0/0 Lore% 75 Gallery% 80 Achievement% 78 Wizard Run 0 Options --------- ASCII 1 Keyboard 1 Movement Numpad Keybinds 1 Fullscreen 1 Font 18/X11 Map View 76x50 Tactical HUD 1 Map Filters NONE Filters NONE Steam 1 RUN: 1611261e-56cd-414e-9f44-8555e0f9ba63